[Event "Titled Tuesday Blitz February 14 Late 2023"]
[White "Avinash, Ramesh"]
[Black "Davidson, Kevin"]
[WhiteFideId "45018340"]
[BlackFideId "2056810"]
[WhiteElo "2319"]
[BlackElo "2154"]
[Result "1-0"]
[Round "01"]
[TimeControl "180+2"]
[Date "2023.02.14"]
[WhiteClock "0:01:49"]
[BlackClock "0:00:08"]

1. c4 {[%clk 0:02:59]}  Nf6 {[%clk 0:02:59]} 2. Nc3 {[%clk 0:02:59]}  g6 {[%clk 0:02:59]} 3. e4 {[%clk 0:02:58]}  d6 {[%clk 0:03:00]} 4. g3 {[%clk 0:02:59]}  Bg7 {[%clk 0:03:00]} 5. Bg2 {[%clk 0:02:59]}  O-O {[%clk 0:03:01]} 6. Nge2 {[%clk 0:03:00]}  c5 {[%clk 0:03:01]} 7. O-O {[%clk 0:03:00]}  Nc6 {[%clk 0:03:02]} 8. d3 {[%clk 0:03:01]}  a6 {[%clk 0:03:02]} 9. Be3 {[%clk 0:03:00]}  Rb8 {[%clk 0:03:01]} 10. a4 {[%clk 0:03:00]}  Ne8 {[%clk 0:03:01]} 11. Qd2 {[%clk 0:03:00]}  Nc7 {[%clk 0:02:59]} 12. d4 {[%clk 0:02:54]}  cxd4 {[%clk 0:02:55]} 13. Nxd4 {[%clk 0:02:51]}  Ne6 {[%clk 0:02:53]} 14. Nxe6 {[%clk 0:02:45]}  Bxe6 {[%clk 0:02:53]} 15. Nd5 {[%clk 0:02:46]}  b5 {[%clk 0:02:43]} 16. cxb5 {[%clk 0:02:12]}  axb5 {[%clk 0:02:44]} 17. a5 {[%clk 0:02:13]}  b4 {[%clk 0:02:17]} 18. a6 {[%clk 0:02:09]}  Bxd5 {[%clk 0:01:56]} 19. exd5 {[%clk 0:02:08]}  Ne5 {[%clk 0:01:56]} 20. Rfc1 {[%clk 0:02:07]}  Qd7 {[%clk 0:01:23]} 21. a7 {[%clk 0:02:06]}  Ra8 {[%clk 0:01:22]} 22. Qxb4 {[%clk 0:02:06]}  Nd3 {[%clk 0:01:19]} 23. Qb6 {[%clk 0:02:04]}  Nxc1 {[%clk 0:01:04]} 24. Rxc1 {[%clk 0:02:04]}  Rfc8 {[%clk 0:01:02]} 25. Rxc8+ {[%clk 0:02:01]}  Qxc8 {[%clk 0:01:03]} 26. Qc6 {[%clk 0:01:58]}  Bxb2 {[%clk 0:00:54]} 27. Qxc8+ {[%clk 0:01:54]}  Rxc8 {[%clk 0:00:54]} 28. Bf1 {[%clk 0:01:53]}  Ra8 {[%clk 0:00:26]} 29. Ba6 {[%clk 0:01:52]}  Bc1 {[%clk 0:00:14]} 30. Bb6 {[%clk 0:01:49]}  Ba3 {[%clk 0:00:10]} 31. Bb7 {[%clk 0:01:49]}  Bc5 {[%clk 0:00:08]} 32. Bxc5 {[%clk 0:01:49]} 1-0


[Site "https://www.chess.com"]

[Event "Titled Tuesday Blitz February 14 Late 2023"]
[White "Manukyan, Artyom"]
[Black "Rustemov, Alexander"]
[WhiteFideId "13305786"]
[BlackFideId "4119002"]
[WhiteElo "2110"]
[BlackElo "2525"]
[Result "1-0"]
[Round "01"]
[TimeControl "180+2"]
[Date "2023.02.14"]
[WhiteClock "0:00:13"]
[BlackClock "0:00:06"]

1. e4 {[%clk 0:03:00]}  e6 {[%clk 0:02:59]} 2. d4 {[%clk 0:03:01]}  d5 {[%clk 0:03:00]} 3. Bd3 {[%clk 0:03:02]}  dxe4 {[%clk 0:02:59]} 4. Bxe4 {[%clk 0:03:02]}  Nf6 {[%clk 0:02:59]} 5. Bf3 {[%clk 0:03:03]}  Be7 {[%clk 0:02:58]} 6. Ne2 {[%clk 0:03:04]}  O-O {[%clk 0:02:58]} 7. O-O {[%clk 0:03:04]}  Nbd7 {[%clk 0:02:58]} 8. Nbc3 {[%clk 0:03:03]}  e5 {[%clk 0:02:56]} 9. Re1 {[%clk 0:02:59]}  Re8 {[%clk 0:02:54]} 10. Ng3 {[%clk 0:02:59]}  exd4 {[%clk 0:02:52]} 11. Qxd4 {[%clk 0:03:00]}  Bc5 {[%clk 0:02:47]} 12. Rxe8+ {[%clk 0:02:56]}  Qxe8 {[%clk 0:02:48]} 13. Qd1 {[%clk 0:02:53]}  Ne5 {[%clk 0:02:47]} 14. Bg5 {[%clk 0:02:51]}  Be7 {[%clk 0:02:20]} 15. Qe2 {[%clk 0:02:38]}  Nxf3+ {[%clk 0:02:19]} 16. Qxf3 {[%clk 0:02:38]}  h6 {[%clk 0:02:17]} 17. Bf4 {[%clk 0:02:39]}  c6 {[%clk 0:02:15]} 18. Re1 {[%clk 0:02:38]}  Be6 {[%clk 0:02:14]} 19. Be5 {[%clk 0:02:28]}  Qd7 {[%clk 0:02:13]} 20. h3 {[%clk 0:02:25]}  Rd8 {[%clk 0:02:10]} 21. Rd1 {[%clk 0:02:21]}  Qc8 {[%clk 0:02:10]} 22. Rxd8+ {[%clk 0:02:21]}  Qxd8 {[%clk 0:02:10]} 23. Qe3 {[%clk 0:02:12]}  b6 {[%clk 0:02:07]} 24. Qf3 {[%clk 0:02:01]}  Qd7 {[%clk 0:02:03]} 25. a3 {[%clk 0:01:53]}  Nd5 {[%clk 0:01:59]} 26. Nh5 {[%clk 0:01:49]}  f6 {[%clk 0:01:46]} 27. Qg3 {[%clk 0:01:25]}  Bd8 {[%clk 0:01:03]} 28. Nxd5 {[%clk 0:01:14]}  Bxd5 {[%clk 0:00:58]} 29. Bxf6 {[%clk 0:01:06]}  Bc7 {[%clk 0:00:56]} 30. Qg6 {[%clk 0:00:26]}  Qf7 {[%clk 0:00:53]} 31. Qg4 {[%clk 0:00:20]}  Be6 {[%clk 0:00:50]} 32. Qxg7+ {[%clk 0:00:20]}  Qxg7 {[%clk 0:00:50]} 33. Nxg7 {[%clk 0:00:21]}  Ba2 {[%clk 0:00:44]} 34. Nh5 {[%clk 0:00:18]}  Bb1 {[%clk 0:00:41]} 35. c3 {[%clk 0:00:18]}  Kf7 {[%clk 0:00:39]} 36. Bd4 {[%clk 0:00:17]}  Bg6 {[%clk 0:00:34]} 37. g4 {[%clk 0:00:16]}  a5 {[%clk 0:00:29]} 38. Be3 {[%clk 0:00:16]}  a4 {[%clk 0:00:16]} 39. Bxh6 {[%clk 0:00:15]}  Bb1 {[%clk 0:00:16]} 40. Be3 {[%clk 0:00:15]}  Ke6 {[%clk 0:00:15]} 41. f4 {[%clk 0:00:15]}  Kd5 {[%clk 0:00:15]} 42. Kf2 {[%clk 0:00:15]}  Kc4 {[%clk 0:00:16]} 43. f5 {[%clk 0:00:13]}  Kb3 {[%clk 0:00:16]} 44. f6 {[%clk 0:00:13]}  Bg6 {[%clk 0:00:15]} 45. Bf4 {[%clk 0:00:11]}  Bd8 {[%clk 0:00:15]} 46. g5 {[%clk 0:00:08]}  Kxb2 {[%clk 0:00:15]} 47. Bd6 {[%clk 0:00:08]}  Bxh5 {[%clk 0:00:15]} 48. Kg3 {[%clk 0:00:04]}  Kxc3 {[%clk 0:00:14]} 49. Kh4 {[%clk 0:00:05]}  Bg6 {[%clk 0:00:14]} 50. Kg4 {[%clk 0:00:06]}  Kd4 {[%clk 0:00:12]} 51. h4 {[%clk 0:00:06]}  Kd5 {[%clk 0:00:12]} 52. h5 {[%clk 0:00:06]}  Bf7 {[%clk 0:00:12]} 53. Bf8 {[%clk 0:00:05]}  Ke6 {[%clk 0:00:12]} 54. Bg7 {[%clk 0:00:05]}  Kd7 {[%clk 0:00:08]} 55. g6 {[%clk 0:00:05]}  Be6+ {[%clk 0:00:08]} 56. Kg5 {[%clk 0:00:06]}  b5 {[%clk 0:00:07]} 57. h6 {[%clk 0:00:06]}  b4 {[%clk 0:00:08]} 58. h7 {[%clk 0:00:07]}  bxa3 {[%clk 0:00:07]} 59. h8=Q {[%clk 0:00:07]}  a2 {[%clk 0:00:08]} 60. Qh1 {[%clk 0:00:07]}  Bc7 {[%clk 0:00:06]} 61. f7 {[%clk 0:00:07]}  Bd6 {[%clk 0:00:06]} 62. f8=Q {[%clk 0:00:07]}  Bxf8 {[%clk 0:00:06]} 63. Bxf8 {[%clk 0:00:08]}  Bd5 {[%clk 0:00:07]} 64. Qa1 {[%clk 0:00:08]}  Kc7 {[%clk 0:00:05]} 65. g7 {[%clk 0:00:09]}  Kb6 {[%clk 0:00:06]} 66. Ba3 {[%clk 0:00:10]}  Kb5 {[%clk 0:00:06]} 67. Bb2 {[%clk 0:00:10]}  Kc4 {[%clk 0:00:07]} 68. Kf6 {[%clk 0:00:11]}  Kb3 {[%clk 0:00:07]} 69. Ke7 {[%clk 0:00:11]}  a3 {[%clk 0:00:08]} 70. Bxa3 {[%clk 0:00:12]}  Kxa3 {[%clk 0:00:08]} 71. Kf8 {[%clk 0:00:12]}  Kb3 {[%clk 0:00:09]} 72. g8=Q {[%clk 0:00:12]}  Bxg8 {[%clk 0:00:09]} 73. Kxg8 {[%clk 0:00:13]}  c5 {[%clk 0:00:09]} 74. Kf7 {[%clk 0:00:13]}  c4 {[%clk 0:00:10]} 75. Ke6 {[%clk 0:00:13]}  c3 {[%clk 0:00:11]} 76. Kd5 {[%clk 0:00:12]}  c2 {[%clk 0:00:09]} 77. Kd4 {[%clk 0:00:12]}  Kb4 {[%clk 0:00:05]} 78. Kd3 {[%clk 0:00:12]}  Kb3 {[%clk 0:00:06]} 79. Kd2 {[%clk 0:00:13]} 1-0


[Site "https://www.chess.com"]

[Event "Titled Tuesday Blitz February 14 Late 2023"]
[White "Li, Ruifeng"]
[Black "Jovic, Stanoje"]
[WhiteFideId "2061074"]
[BlackFideId "905020"]
[WhiteElo "2541"]
[BlackElo "2075"]
[Result "1-0"]
[Round "01"]
[TimeControl "180+2"]
[Date "2023.02.14"]
[WhiteClock "0:00:07"]
[BlackClock "0:00:01"]

1. b3 {[%clk 0:03:00]}  Nf6 {[%clk 0:02:59]} 2. Bb2 {[%clk 0:03:01]}  e6 {[%clk 0:02:58]} 3. e3 {[%clk 0:03:02]}  b6 {[%clk 0:02:58]} 4. Nf3 {[%clk 0:03:02]}  Bb7 {[%clk 0:02:58]} 5. c4 {[%clk 0:03:02]}  c5 {[%clk 0:02:57]} 6. Be2 {[%clk 0:03:02]}  Be7 {[%clk 0:02:56]} 7. Qc2 {[%clk 0:03:02]}  Nc6 {[%clk 0:02:53]} 8. a3 {[%clk 0:03:02]}  d5 {[%clk 0:02:50]} 9. g4 {[%clk 0:03:01]}  d4 {[%clk 0:02:45]} 10. g5 {[%clk 0:03:00]}  Nd7 {[%clk 0:02:42]} 11. Rg1 {[%clk 0:02:58]}  e5 {[%clk 0:02:39]} 12. b4 {[%clk 0:02:50]}  Qc7 {[%clk 0:02:37]} 13. b5 {[%clk 0:02:49]}  Nd8 {[%clk 0:02:36]} 14. d3 {[%clk 0:02:43]}  Ne6 {[%clk 0:02:29]} 15. Nbd2 {[%clk 0:02:44]}  O-O {[%clk 0:02:24]} 16. h4 {[%clk 0:02:43]}  a6 {[%clk 0:02:23]} 17. a4 {[%clk 0:02:39]}  axb5 {[%clk 0:02:23]} 18. cxb5 {[%clk 0:02:40]}  f5 {[%clk 0:02:15]} 19. Qb3 {[%clk 0:02:13]}  Kf7 {[%clk 0:02:13]} 20. g6+ {[%clk 0:01:40]}  hxg6 {[%clk 0:02:07]} 21. h5 {[%clk 0:01:41]}  g5 {[%clk 0:01:58]} 22. Rxg5 {[%clk 0:01:27]}  c4 {[%clk 0:01:58]} 23. Nxc4 {[%clk 0:01:25]}  Bxf3 {[%clk 0:01:48]} 24. Rxf5+ {[%clk 0:01:24]}  Kg8 {[%clk 0:01:43]} 25. Rxf3 {[%clk 0:01:21]}  Nec5 {[%clk 0:01:38]} 26. Qc2 {[%clk 0:01:20]}  dxe3 {[%clk 0:01:34]} 27. Nxe3 {[%clk 0:01:14]}  Bg5 {[%clk 0:01:23]} 28. Qc4+ {[%clk 0:01:11]}  Kh8 {[%clk 0:01:21]} 29. Nd5 {[%clk 0:01:07]}  Qd6 {[%clk 0:01:17]} 30. Rg3 {[%clk 0:01:05]}  Bh6 {[%clk 0:01:14]} 31. Rg6 {[%clk 0:01:04]}  Nf6 {[%clk 0:01:08]} 32. Ne3 {[%clk 0:00:53]}  Rfd8 {[%clk 0:00:57]} 33. Nf5 {[%clk 0:00:49]}  Qf8 {[%clk 0:00:52]} 34. Nxh6 {[%clk 0:00:45]}  gxh6 {[%clk 0:00:52]} 35. Bxe5 {[%clk 0:00:46]}  Nd7 {[%clk 0:00:49]} 36. Rxf6 {[%clk 0:00:41]}  Nxf6 {[%clk 0:00:45]} 37. Qe6 {[%clk 0:00:39]}  Kg7 {[%clk 0:00:36]} 38. Kd2 {[%clk 0:00:35]}  Qb4+ {[%clk 0:00:34]} 39. Bc3 {[%clk 0:00:34]}  Qf4+ {[%clk 0:00:33]} 40. Kc2 {[%clk 0:00:30]}  Rac8 {[%clk 0:00:28]} 41. Rg1+ {[%clk 0:00:28]}  Kh8 {[%clk 0:00:27]} 42. Rg6 {[%clk 0:00:25]}  Rxc3+ {[%clk 0:00:15]} 43. Kxc3 {[%clk 0:00:25]}  Rf8 {[%clk 0:00:13]} 44. Kc2 {[%clk 0:00:21]}  Qxa4+ {[%clk 0:00:11]} 45. Qb3 {[%clk 0:00:21]}  Rc8+ {[%clk 0:00:09]} 46. Kb2 {[%clk 0:00:21]}  Qd4+ {[%clk 0:00:09]} 47. Kb1 {[%clk 0:00:21]}  Re8 {[%clk 0:00:07]} 48. Bd1 {[%clk 0:00:17]}  Ng8 {[%clk 0:00:05]} 49. Qb2 {[%clk 0:00:15]}  Qxb2+ {[%clk 0:00:04]} 50. Kxb2 {[%clk 0:00:16]}  Re5 {[%clk 0:00:04]} 51. Kc3 {[%clk 0:00:15]}  Rf5 {[%clk 0:00:04]} 52. f3 {[%clk 0:00:14]}  Rxh5 {[%clk 0:00:03]} 53. f4 {[%clk 0:00:14]}  Rxb5 {[%clk 0:00:02]} 54. d4 {[%clk 0:00:11]}  Ne7 {[%clk 0:00:01]} 55. Rxh6+ {[%clk 0:00:11]}  Kg7 {[%clk 0:00:01]} 56. Rh4 {[%clk 0:00:11]}  Nd5+ {[%clk 0:00:01]} 57. Kc4 {[%clk 0:00:11]}  Ra5 {[%clk 0:00:02]} 58. Bf3 {[%clk 0:00:11]}  Ne3+ {[%clk 0:00:02]} 59. Kd3 {[%clk 0:00:11]}  Nf5 {[%clk 0:00:02]} 60. Rh3 {[%clk 0:00:08]}  Kf6 {[%clk 0:00:03]} 61. Bg4 {[%clk 0:00:07]}  Ra3+ {[%clk 0:00:03]} 62. Kc4 {[%clk 0:00:08]}  Ra4+ {[%clk 0:00:02]} 63. Kb5 {[%clk 0:00:07]}  Rxd4 {[%clk 0:00:02]} 64. Rf3 {[%clk 0:00:07]}  Rd6 {[%clk 0:00:01]} 65. Rf2 {[%clk 0:00:07]} 1-0


[Site "https://www.chess.com"]

[Event "Titled Tuesday Blitz February 14 Late 2023"]
[White "Makridis, Dimitrios"]
[Black "Fernandez Garcia, Gumersindo"]
[WhiteFideId "25864475"]
[BlackFideId "24516740"]
[WhiteElo "2356"]
[BlackElo "2160"]
[Result "1-0"]
[Round "01"]
[TimeControl "180+2"]
[Date "2023.02.14"]
[WhiteClock "0:01:07"]
[BlackClock "0:00:15"]

1. e4 {[%clk 0:02:58]}  c5 {[%clk 0:02:57]} 2. Nf3 {[%clk 0:02:58]}  g6 {[%clk 0:02:56]} 3. Bc4 {[%clk 0:02:57]}  Bg7 {[%clk 0:02:55]} 4. O-O {[%clk 0:02:57]}  Nc6 {[%clk 0:02:53]} 5. c3 {[%clk 0:02:57]}  e6 {[%clk 0:02:51]} 6. Re1 {[%clk 0:02:56]}  Nge7 {[%clk 0:02:50]} 7. d4 {[%clk 0:02:57]}  d5 {[%clk 0:02:49]} 8. exd5 {[%clk 0:02:57]}  exd5 {[%clk 0:02:48]} 9. Bb5 {[%clk 0:02:55]}  cxd4 {[%clk 0:02:47]} 10. Nxd4 {[%clk 0:02:56]}  O-O {[%clk 0:02:46]} 11. Be3 {[%clk 0:02:56]}  a6 {[%clk 0:02:40]} 12. Bf1 {[%clk 0:02:54]}  Qd6 {[%clk 0:02:33]} 13. Nd2 {[%clk 0:02:46]}  Nf5 {[%clk 0:02:28]} 14. Nxf5 {[%clk 0:02:39]}  Bxf5 {[%clk 0:02:26]} 15. Nf3 {[%clk 0:02:40]}  Rad8 {[%clk 0:02:19]} 16. Nd4 {[%clk 0:02:39]}  Bc8 {[%clk 0:02:11]} 17. h3 {[%clk 0:02:36]}  Rfe8 {[%clk 0:02:09]} 18. Qd2 {[%clk 0:02:35]}  Re4 {[%clk 0:01:57]} 19. Rad1 {[%clk 0:02:32]}  Nxd4 {[%clk 0:01:54]} 20. Bxd4 {[%clk 0:02:32]}  Bxd4 {[%clk 0:01:50]} 21. cxd4 {[%clk 0:02:33]}  Rde8 {[%clk 0:01:43]} 22. Rxe4 {[%clk 0:02:26]}  Rxe4 {[%clk 0:01:32]} 23. Rc1 {[%clk 0:02:26]}  Re8 {[%clk 0:01:26]} 24. Qc3 {[%clk 0:02:20]}  Bf5 {[%clk 0:01:22]} 25. Qc5 {[%clk 0:01:54]}  Qf4 {[%clk 0:01:08]} 26. g3 {[%clk 0:01:34]}  Qd2 {[%clk 0:01:01]} 27. Qc3 {[%clk 0:01:29]}  Qxc3 {[%clk 0:00:57]} 28. bxc3 {[%clk 0:01:30]}  Kf8 {[%clk 0:00:50]} 29. a4 {[%clk 0:01:28]}  Rc8 {[%clk 0:00:41]} 30. f3 {[%clk 0:01:26]}  Ke7 {[%clk 0:00:41]} 31. Kf2 {[%clk 0:01:26]}  Kd6 {[%clk 0:00:41]} 32. Ke3 {[%clk 0:01:26]}  b5 {[%clk 0:00:35]} 33. axb5 {[%clk 0:01:25]}  axb5 {[%clk 0:00:35]} 34. Bxb5 {[%clk 0:01:26]}  Bxh3 {[%clk 0:00:26]} 35. g4 {[%clk 0:01:25]}  h5 {[%clk 0:00:22]} 36. Kf4 {[%clk 0:01:25]}  hxg4 {[%clk 0:00:20]} 37. fxg4 {[%clk 0:01:26]}  Bg2 {[%clk 0:00:20]} 38. g5 {[%clk 0:01:23]}  Be4 {[%clk 0:00:18]} 39. c4 {[%clk 0:01:22]}  Bf5 {[%clk 0:00:19]} 40. c5+ {[%clk 0:01:22]}  Kc7 {[%clk 0:00:19]} 41. Re1 {[%clk 0:01:23]}  Be6 {[%clk 0:00:17]} 42. Ra1 {[%clk 0:01:24]}  Rb8 {[%clk 0:00:17]} 43. Bd3 {[%clk 0:01:22]}  Rb3 {[%clk 0:00:17]} 44. Rd1 {[%clk 0:01:18]}  Rc3 {[%clk 0:00:17]} 45. Ke5 {[%clk 0:01:19]}  Rb3 {[%clk 0:00:17]} 46. Kf6 {[%clk 0:01:14]}  Kd7 {[%clk 0:00:17]} 47. Bc2 {[%clk 0:01:09]}  Rf3+ {[%clk 0:00:15]} 48. Kg7 {[%clk 0:01:08]}  Rg3 {[%clk 0:00:14]} 49. Ra1 {[%clk 0:01:06]}  Rxg5 {[%clk 0:00:14]} 50. Ra7+ {[%clk 0:01:07]}  Kc6 {[%clk 0:00:15]} 51. Ba4# {[%clk 0:01:07]} 1-0


[Site "https://www.chess.com"]

[Event "Titled Tuesday Blitz February 14 Late 2023"]
[White "Lodici, Lorenzo"]
[Black "Nilsson, Joakim"]
[WhiteFideId "884189"]
[BlackFideId "1723383"]
[WhiteElo "2524"]
[BlackElo "2188"]
[Result "1-0"]
[Round "01"]
[TimeControl "180+2"]
[Date "2023.02.14"]
[WhiteClock "0:01:02"]
[BlackClock "0:00:40"]

1. b3 {[%clk 0:02:43]}  Nf6 {[%clk 0:02:58]} 2. Bb2 {[%clk 0:02:43]}  g6 {[%clk 0:02:59]} 3. e4 {[%clk 0:02:42]}  Bg7 {[%clk 0:02:58]} 4. Ne2 {[%clk 0:02:42]}  O-O {[%clk 0:02:56]} 5. Ng3 {[%clk 0:02:39]}  d5 {[%clk 0:02:56]} 6. e5 {[%clk 0:02:26]}  Ne4 {[%clk 0:02:55]} 7. Qe2 {[%clk 0:02:23]}  Nxg3 {[%clk 0:02:49]} 8. hxg3 {[%clk 0:02:24]}  Nc6 {[%clk 0:02:49]} 9. f4 {[%clk 0:02:22]}  Bf5 {[%clk 0:02:48]} 10. d3 {[%clk 0:02:18]}  Qd7 {[%clk 0:02:48]} 11. Nd2 {[%clk 0:02:15]}  a5 {[%clk 0:02:48]} 12. a3 {[%clk 0:02:11]}  Bg4 {[%clk 0:02:41]} 13. Nf3 {[%clk 0:02:09]}  e6 {[%clk 0:02:41]} 14. Rh4 {[%clk 0:02:06]}  h5 {[%clk 0:02:38]} 15. Rxg4 {[%clk 0:02:04]}  hxg4 {[%clk 0:02:39]} 16. Ng5 {[%clk 0:02:05]}  f6 {[%clk 0:02:32]} 17. exf6 {[%clk 0:02:05]}  Bxf6 {[%clk 0:02:31]} 18. Bxf6 {[%clk 0:02:05]}  Rxf6 {[%clk 0:02:31]} 19. Qxg4 {[%clk 0:02:06]}  Nd4 {[%clk 0:02:29]} 20. Kd2 {[%clk 0:02:01]}  Qc6 {[%clk 0:02:25]} 21. Ra2 {[%clk 0:02:01]}  Re8 {[%clk 0:02:02]} 22. Qh4 {[%clk 0:01:57]}  Re7 {[%clk 0:02:02]} 23. Ne4 {[%clk 0:01:50]}  Rff7 {[%clk 0:01:54]} 24. Nf6+ {[%clk 0:01:47]}  Kg7 {[%clk 0:01:49]} 25. Ng4 {[%clk 0:01:46]}  Nf5 {[%clk 0:01:47]} 26. Qg5 {[%clk 0:01:45]}  Qb6 {[%clk 0:01:43]} 27. Be2 {[%clk 0:01:38]}  Qg1 {[%clk 0:01:34]} 28. Bf3 {[%clk 0:01:29]}  Nxg3 {[%clk 0:01:15]} 29. Qh6+ {[%clk 0:01:23]}  Kg8 {[%clk 0:01:15]} 30. Qxg6+ {[%clk 0:01:23]}  Kf8 {[%clk 0:01:15]} 31. Ne5 {[%clk 0:01:10]}  Nf1+ {[%clk 0:00:47]} 32. Kc3 {[%clk 0:01:06]}  d4+ {[%clk 0:00:41]} 33. Kb2 {[%clk 0:01:05]}  Nd2 {[%clk 0:00:41]} 34. Ra1 {[%clk 0:01:04]}  Qe3 {[%clk 0:00:40]} 35. Qh6+ {[%clk 0:01:01]}  Ke8 {[%clk 0:00:40]} 36. Qh8+ {[%clk 0:01:01]}  Rf8 {[%clk 0:00:39]} 37. Bh5+ {[%clk 0:01:02]}  Kd8 {[%clk 0:00:39]} 38. Qxf8+ {[%clk 0:01:01]}  Re8 {[%clk 0:00:40]} 39. Qxe8# {[%clk 0:01:02]} 1-0


[Site "https://www.chess.com"]

[Event "Titled Tuesday Blitz February 14 Late 2023"]
[White "Maksimovic, Bojan"]
[Black "Mikhalsky, Vladimir"]
[WhiteFideId "14408120"]
[BlackFideId "14144352"]
[WhiteElo "2486"]
[BlackElo "2219"]
[Result "0-1"]
[Round "01"]
[TimeControl "180+2"]
[Date "2023.02.14"]
[WhiteClock "0:00:02"]
[BlackClock "0:00:04"]

1. Nf3 {[%clk 0:02:58]}  c5 {[%clk 0:02:15]} 2. e4 {[%clk 0:02:56]}  Nc6 {[%clk 0:02:14]} 3. d4 {[%clk 0:02:56]}  cxd4 {[%clk 0:02:13]} 4. Nxd4 {[%clk 0:02:57]}  Nf6 {[%clk 0:02:12]} 5. Nc3 {[%clk 0:02:57]}  e5 {[%clk 0:02:12]} 6. Ndb5 {[%clk 0:02:57]}  d6 {[%clk 0:02:11]} 7. Nd5 {[%clk 0:02:57]}  Nxd5 {[%clk 0:02:09]} 8. exd5 {[%clk 0:02:57]}  Ne7 {[%clk 0:02:09]} 9. a4 {[%clk 0:02:57]}  a6 {[%clk 0:02:06]} 10. Nc3 {[%clk 0:02:57]}  Nf5 {[%clk 0:02:06]} 11. Bd3 {[%clk 0:02:57]}  Be7 {[%clk 0:02:04]} 12. O-O {[%clk 0:02:57]}  O-O {[%clk 0:02:04]} 13. f4 {[%clk 0:02:57]}  exf4 {[%clk 0:01:59]} 14. Bxf4 {[%clk 0:02:58]}  Bg5 {[%clk 0:01:39]} 15. Bxg5 {[%clk 0:02:38]}  Qxg5 {[%clk 0:01:38]} 16. Qf3 {[%clk 0:02:39]}  Nh4 {[%clk 0:01:20]} 17. Qg3 {[%clk 0:02:24]}  Qxg3 {[%clk 0:01:16]} 18. hxg3 {[%clk 0:02:25]}  Ng6 {[%clk 0:01:15]} 19. a5 {[%clk 0:02:05]}  Ne5 {[%clk 0:01:06]} 20. Be4 {[%clk 0:02:05]}  Bd7 {[%clk 0:01:03]} 21. Na4 {[%clk 0:01:58]}  Bxa4 {[%clk 0:01:02]} 22. Rxa4 {[%clk 0:01:59]}  Rac8 {[%clk 0:01:01]} 23. b3 {[%clk 0:01:43]}  g6 {[%clk 0:00:54]} 24. c4 {[%clk 0:01:43]}  f5 {[%clk 0:00:50]} 25. Bc2 {[%clk 0:01:43]}  Rfe8 {[%clk 0:00:47]} 26. Rb4 {[%clk 0:01:44]}  Rc7 {[%clk 0:00:44]} 27. Rb6 {[%clk 0:01:43]}  Rd7 {[%clk 0:00:43]} 28. Rc1 {[%clk 0:01:32]}  Ng4 {[%clk 0:00:34]} 29. Kf1 {[%clk 0:01:19]}  Ne3+ {[%clk 0:00:32]} 30. Kf2 {[%clk 0:01:16]}  Ng4+ {[%clk 0:00:32]} 31. Kf1 {[%clk 0:01:16]}  Re3 {[%clk 0:00:31]} 32. Re1 {[%clk 0:01:07]}  Rde7 {[%clk 0:00:29]} 33. Rxe3 {[%clk 0:00:44]}  Nxe3+ {[%clk 0:00:29]} 34. Kf2 {[%clk 0:00:45]}  Nxc2 {[%clk 0:00:29]} 35. Rxd6 {[%clk 0:00:45]}  Nd4 {[%clk 0:00:29]} 36. b4 {[%clk 0:00:46]}  Nc2 {[%clk 0:00:27]} 37. b5 {[%clk 0:00:46]}  Nb4 {[%clk 0:00:22]} 38. Rb6 {[%clk 0:00:30]}  Rc7 {[%clk 0:00:21]} 39. d6 {[%clk 0:00:26]}  Rxc4 {[%clk 0:00:21]} 40. Rxb7 {[%clk 0:00:27]}  Rd4 {[%clk 0:00:19]} 41. d7 {[%clk 0:00:25]}  Kf8 {[%clk 0:00:17]} 42. b6 {[%clk 0:00:26]}  Nc6 {[%clk 0:00:16]} 43. Rc7 {[%clk 0:00:26]}  Nd8 {[%clk 0:00:16]} 44. b7 {[%clk 0:00:21]}  Rb4 {[%clk 0:00:15]} 45. Rc8 {[%clk 0:00:18]}  Rxb7 {[%clk 0:00:15]} 46. Rxd8+ {[%clk 0:00:19]}  Ke7 {[%clk 0:00:15]} 47. Rh8 {[%clk 0:00:15]}  Rxd7 {[%clk 0:00:15]} 48. Rxh7+ {[%clk 0:00:16]}  Ke6 {[%clk 0:00:15]} 49. Rh6 {[%clk 0:00:14]}  Kf6 {[%clk 0:00:15]} 50. Rh1 {[%clk 0:00:10]}  Rd5 {[%clk 0:00:15]} 51. Ra1 {[%clk 0:00:10]}  Rd3 {[%clk 0:00:14]} 52. Ra2 {[%clk 0:00:10]}  Kg5 {[%clk 0:00:13]} 53. Ra4 {[%clk 0:00:11]}  Rd5 {[%clk 0:00:13]} 54. Kf3 {[%clk 0:00:11]}  Rb5 {[%clk 0:00:13]} 55. Ra3 {[%clk 0:00:11]}  Rb4 {[%clk 0:00:13]} 56. Ra2 {[%clk 0:00:11]}  Kh5 {[%clk 0:00:13]} 57. Ra3 {[%clk 0:00:11]}  g5 {[%clk 0:00:14]} 58. Ra2 {[%clk 0:00:11]}  g4+ {[%clk 0:00:14]} 59. Kf2 {[%clk 0:00:11]}  Kg5 {[%clk 0:00:14]} 60. Ra3 {[%clk 0:00:12]}  Rb5 {[%clk 0:00:14]} 61. Ra4 {[%clk 0:00:12]}  Kf6 {[%clk 0:00:14]} 62. Ke3 {[%clk 0:00:11]}  Ke5 {[%clk 0:00:14]} 63. Ra3 {[%clk 0:00:11]}  Rb4 {[%clk 0:00:14]} 64. Rc3 {[%clk 0:00:09]}  Rb5 {[%clk 0:00:13]} 65. Ra3 {[%clk 0:00:10]}  Kd5 {[%clk 0:00:13]} 66. Kf4 {[%clk 0:00:08]}  Kc4 {[%clk 0:00:14]} 67. Ra1 {[%clk 0:00:08]}  Kb4 {[%clk 0:00:12]} 68. Rb1+ {[%clk 0:00:02]}  Kxa5 {[%clk 0:00:12]} 69. Ra1+ {[%clk 0:00:03]}  Kb6 {[%clk 0:00:12]} 70. Ra2 {[%clk 0:00:03]}  a5 {[%clk 0:00:12]} 71. Ra1 {[%clk 0:00:04]}  Rc5 {[%clk 0:00:12]} 72. Rb1+ {[%clk 0:00:04]}  Ka6 {[%clk 0:00:13]} 73. Ra1 {[%clk 0:00:04]}  Kb5 {[%clk 0:00:12]} 74. Rb1+ {[%clk 0:00:05]}  Kc4 {[%clk 0:00:12]} 75. Ra1 {[%clk 0:00:05]}  Kb4 {[%clk 0:00:11]} 76. Rb1+ {[%clk 0:00:05]}  Ka3 {[%clk 0:00:12]} 77. Ke3 {[%clk 0:00:02]}  a4 {[%clk 0:00:11]} 78. Kd4 {[%clk 0:00:02]}  Rc2 {[%clk 0:00:11]} 79. Rf1 {[%clk 0:00:01]}  Rxg2 {[%clk 0:00:09]} 80. Rxf5 {[%clk 0:00:02]}  Rxg3 {[%clk 0:00:09]} 81. Rb5 {[%clk 0:00:03]}  Rb3 {[%clk 0:00:08]} 82. Rg5 {[%clk 0:00:02]}  g3 {[%clk 0:00:09]} 83. Kc4 {[%clk 0:00:01]}  Kb2 {[%clk 0:00:08]} 84. Re5 {[%clk 0:00:02]}  Rc3+ {[%clk 0:00:07]} 85. Kb4 {[%clk 0:00:02]}  a3 {[%clk 0:00:07]} 86. Re2+ {[%clk 0:00:02]}  Rc2 {[%clk 0:00:07]} 87. Re3 {[%clk 0:00:03]}  g2 {[%clk 0:00:07]} 88. Rb3+ {[%clk 0:00:02]}  Kc1 {[%clk 0:00:06]} 89. Rxa3 {[%clk 0:00:03]}  Rb2+ {[%clk 0:00:04]} 90. Kc3 {[%clk 0:00:04]}  g1=Q {[%clk 0:00:03]} 91. Ra1+ {[%clk 0:00:02]}  Rb1 {[%clk 0:00:04]} 92. Rxb1+ {[%clk 0:00:02]}  Kxb1 {[%clk 0:00:04]} 0-1


[Site "https://www.chess.com"]